{"text_format":"3","workbook":"xlsx","n_sheets":2,"sheets":["BẮT ĐẦU","BẢNG CHẤM CÔNG HÀNG NĂM"],"not_rendered":{"defined_names":2},"read":"whole","date_system":"1900"}

{"sheet":"BẮT ĐẦU","index":0,"n_rows":8,"n_cols":2,"rows_kept":8}
[null,"GIỚI THIỆU VỀ MẪU NÀY"]
[null,"Theo dõi số giờ của bạn hàng ngày, hàng tháng và hàng năm trong Thẻ chấm công nhân viên này."]
[null,"Điền thông tin cơ bản như Tên nhân viên, Tên người quản lý, Địa chỉ email và Số điện thoại. "]
[null,"Thêm số giờ của bạn vào từng bảng tháng. Ghi nhật ký số giờ thông thường và số giờ làm thêm vào các cột riêng biệt cho từng ngày trong mỗi tuần. "]
[null,"Tổng số Giờ làm việc, thông thường và làm thêm được tính toán tự động. "]
[null,"Ghi chú:"]
[null,"Hướng dẫn bổ sung được cung cấp ở cột A trong trang tính BẢNG CHẤM CÔNG HÀNG NĂM. Văn bản này đã được ẩn một cách chủ ý. Để loại bỏ văn bản, chọn cột A, rồi chọn XÓA. Để bỏ ẩn văn bản, chọn cột A, rồi thay đổi màu phông chữ. "]
[null,"Để tìm hiểu thêm về các bảng, hãy nhấn SHIFT, rồi F10 trong một bảng, chọn tùy chọn BẢNG, rồi chọn VĂN BẢN THAY THẾ."]

{"sheet":"BẢNG CHẤM CÔNG HÀNG NĂM","index":1,"n_rows":132,"n_cols":15,"rows_kept":132,"merged":[[0,1,0,2],[0,4,0,14],[10,6,10,7],[21,6,21,7],[32,6,32,7],[33,4,33,14],[43,6,43,7],[54,6,54,7],[65,6,65,7],[66,4,66,14],[76,6,76,7],[87,6,87,7],[98,6,98,7],[99,4,99,14],[109,6,109,7],[120,6,120,7],[131,6,131,7]]}
["Tạo bảng chấm công Nhân viên hàng ngày, hàng tuần, hàng tháng hoặc hàng năm trong trang tính này. \nCác hướng dẫn hữu ích về cách sử dụng sổ làm việc này đều nằm ở các ô trong cột này. Mũi tên xuống để bắt đầu.\nTiêu đề của trang tính này nằm trong ô bên phải và đầu đề quý Tháng Một, Tháng Hai, Tháng Ba nằm trong ô E1.","THẺ CHẤM CÔNG \nNHÂN VIÊN",null,null,"Tháng Một, Tháng Hai, Tháng Ba      Thẻ chấm công nhân viên: Hàng ngày, Hàng tuần, Hàng tháng, Hàng năm"]
["Nhập Tên nhân viên vào ô C2 và số giờ thông thường, cũng như làm thêm vào bảng Tháng Một bắt đầu ở ô E2.","Tên nhân viên:",null,null,"Tháng Một","Tuần 1","Làm thêm","Tuần 2","Làm thêm  ","Tuần 3","Làm thêm   ","Tuần 4","Làm thêm    ","Tuần 5","Làm thêm     "]
["Nhập Tên người quản lý vào ô C3.","Người quản lý:",null,null,"Thứ Hai",{"v":8,"d":"8.0"}]
["Nhập Địa chỉ email vào ô C4.","Email:",null,null,"Thứ Ba",{"v":8,"d":"8.0"},{"v":2,"d":"2.0"}]
["Nhập Số điện thoại vào ô C5. Hướng dẫn tiếp theo nằm trong ô A9.","Điện thoại:",null,null,"Thứ Tư"]
[{"$nulls":4},"Thứ Năm"]
[{"$nulls":4},"Thứ Sáu"]
[{"$nulls":4},"Thứ Bảy"]
["Tổng số giờ thông thường hàng năm được tính toán tự động trong ô C9.","Số giờ làm việc thông thường:",{"$f":"Số_giờ_thông_thường","v":31},null,"Chủ Nhật"]
["Tổng số giờ làm thêm hàng năm được tính toán tự động trong ô C10.","Số giờ làm thêm:",{"$f":"Số_giờ_làm_thêm","v":4},null,"Tổng số giờ hàng tuần",{"$f":"SUM(F3:F9)","v":{"v":16,"d":"16.0"}},{"v":2,"d":"2.0"},{"v":0,"d":"0.0"},{"v":0,"d":"0.0"},{"v":0,"d":"0.0"},{"v":0,"d":"0.0"},{"v":0,"d":"0.0"},{"v":0,"d":"0.0"},{"v":0,"d":"0.0"},{"v":0,"d":"0.0"}]
["Tổng số giờ hàng năm được tính toán tự động trong ô C11. Tổng số giờ thông thường Tháng Một trong ô F11 và tổng số giờ làm thêm Tháng Một trong ô I11 được tính toán tự động. Hướng dẫn tiếp theo nằm trong ô A13.","Tổng",{"$f":"Số_giờ_thông_thường+Số_giờ_làm_thêm","v":35},null,{"$f":"LEFT(Tháng_Một[[#Headers],[Tháng Một]],9)&\". tổng: Số giờ làm việc thông thường\"","v":"Tháng Một. tổng: Số giờ làm việc thông thường"},{"$f":"SUM(Tháng_Một[Tuần 1],Tháng_Một[Tuần 2],Tháng_Một[Tuần 3],Tháng_Một[Tuần 4],Tháng_Một[Tuần 5])","v":{"v":16,"d":"16.0"}},{"$f":"LEFT(Tháng_Một[[#Headers],[Tháng Một]],9)&\". tổng: Làm thêm\"","v":"Tháng Một. tổng: Làm thêm"},null,{"$f":"SUM(Tháng_Một[Làm thêm],Tháng_Một[[Làm thêm  ]],Tháng_Một[[Làm thêm   ]],Tháng_Một[[Làm thêm    ]],Tháng_Một[[Làm thêm     ]])","v":{"v":2,"d":"2.0"}}]
[]
["Nhập số giờ thông thường và làm thêm vào bảng Tháng Hai bắt đầu ở ô E13. Hướng dẫn tiếp theo nằm trong ô A22.",{"$nulls":3},"Tháng Hai","Tuần 1","Làm thêm","Tuần 2","Làm thêm  ","Tuần 3","Làm thêm   ","Tuần 4","Làm thêm    ","Tuần 5","Làm thêm     "]
[{"$nulls":4},"Thứ Hai",{"v":8,"d":"8.0"}]
[{"$nulls":4},"Thứ Ba",{"v":7,"d":"7.0"},{"v":2,"d":"2.0"}]
[{"$nulls":4},"Thứ Tư"]
[{"$nulls":4},"Thứ Năm"]
[{"$nulls":4},"Thứ Sáu"]
[{"$nulls":4},"Thứ Bảy"]
[{"$nulls":4},"Chủ Nhật"]
[{"$nulls":4},"Tổng số giờ hàng tuần",{"$f":"SUM(F14:F20)","v":{"v":15,"d":"15.0"}},{"v":2,"d":"2.0"},{"v":0,"d":"0.0"},{"v":0,"d":"0.0"},{"v":0,"d":"0.0"},{"v":0,"d":"0.0"},{"v":0,"d":"0.0"},{"v":0,"d":"0.0"},{"v":0,"d":"0.0"},{"v":0,"d":"0.0"}]
["Tổng số giờ thông thường Tháng Hai trong ô F22 và tổng số giờ làm thêm Tháng Hai trong ô I22 đều được tính toán tự động. Hướng dẫn tiếp theo nằm trong ô A24.",{"$nulls":3},{"$f":"LEFT(Tháng_Hai[[#Headers],[Tháng Hai]],9)&\". tổng: Số giờ làm việc thông thường\"","v":"Tháng Hai. tổng: Số giờ làm việc thông thường"},{"$f":"SUM(Tháng_Hai[Tuần 1],Tháng_Hai[Tuần 2],Tháng_Hai[Tuần 3],Tháng_Hai[Tuần 4],Tháng_Hai[Tuần 5])","v":{"v":15,"d":"15.0"}},{"$f":"LEFT(Tháng_Hai[[#Headers],[Tháng Hai]],9)&\". tổng: Làm thêm\"","v":"Tháng Hai. tổng: Làm thêm"},null,{"$f":"SUM(Tháng_Hai[Làm thêm],Tháng_Hai[[Làm thêm  ]],Tháng_Hai[[Làm thêm   ]],Tháng_Hai[[Làm thêm    ]],Tháng_Hai[[Làm thêm     ]])","v":{"v":2,"d":"2.0"}}]
[]
["Nhập số giờ thông thường và làm thêm vào bảng Tháng Ba bắt đầu ở ô E24. Hướng dẫn tiếp theo nằm trong ô A33.",{"$nulls":3},"Tháng Ba","Tuần 1","Làm thêm","Tuần 2","Làm thêm ","Tuần 3","Làm thêm  ","Tuần 4","Làm thêm    ","Tuần 5","Làm thêm     "]
[{"$nulls":4},"Thứ Hai"]
[{"$nulls":4},"Thứ Ba"]
[{"$nulls":4},"Thứ Tư"]
[{"$nulls":4},"Thứ Năm"]
[{"$nulls":4},"Thứ Sáu"]
[{"$nulls":4},"Thứ Bảy"]
[{"$nulls":4},"Chủ Nhật"]
[{"$nulls":4},"Tổng số giờ hàng tuần",{"$f":"SUM(F25:F31)","v":{"v":0,"d":"0.0"}},{"v":0,"d":"0.0"},{"v":0,"d":"0.0"},{"v":0,"d":"0.0"},{"v":0,"d":"0.0"},{"v":0,"d":"0.0"},{"v":0,"d":"0.0"},{"v":0,"d":"0.0"},{"v":0,"d":"0.0"},{"v":0,"d":"0.0"}]
["Tổng số giờ thông thường Tháng Ba trong ô F33 và tổng số giờ làm thêm Tháng Ba trong ô I33 đều được tính toán tự động.",{"$nulls":3},{"$f":"LEFT(Tháng_Một[[#Headers],[Tháng Một]],9)&\". tổng: Số giờ làm việc thông thường\"","v":"Tháng Một. tổng: Số giờ làm việc thông thường"},{"$f":"SUM(Tháng_Ba[Tuần 1],Tháng_Ba[Tuần 2],Tháng_Ba[Tuần 3],Tháng_Ba[Tuần 4],Tháng_Ba[Tuần 5])","v":{"v":0,"d":"0.0"}},{"$f":"LEFT(Tháng_Ba[[#Headers],[Tháng Ba]],9)&\". tổng: Làm thêm\"","v":"Tháng Ba. tổng: Làm thêm"},null,{"$f":"SUM(Tháng_Ba[Làm thêm],Tháng_Ba[[Làm thêm ]],Tháng_Ba[[Làm thêm  ]],Tháng_Ba[[Làm thêm    ]],Tháng_Ba[[Làm thêm     ]])","v":{"v":0,"d":"0.0"}}]
["Tiêu đề quý hai Tháng Tư, Tháng Năm, Tháng Sáu nằm trong ô E34. ",{"$nulls":3},"Tháng Tư, Tháng Năm, Tháng Sáu      Thẻ chấm công nhân viên: Hàng ngày, Hàng tuần, Hàng tháng, Hàng năm"]
["Nhập số giờ thông thường và làm thêm trong Tháng Tư vào bảng bắt đầu ở ô E35. Hướng dẫn tiếp theo nằm trong ô A44.",{"$nulls":3},"Tháng Tư","Tuần 1","Làm thêm","Tuần 2","Làm thêm  ","Tuần 3","Làm thêm   ","Tuần 4","Làm thêm    ","Tuần 5","Làm thêm     "]
[{"$nulls":4},"Thứ Hai"]
[{"$nulls":4},"Thứ Ba"]
[{"$nulls":4},"Thứ Tư"]
[{"$nulls":4},"Thứ Năm"]
[{"$nulls":4},"Thứ Sáu"]
[{"$nulls":4},"Thứ Bảy"]
[{"$nulls":4},"Chủ Nhật"]
[{"$nulls":4},"Tổng số giờ hàng tuần",{"$f":"SUM(F36:F42)","v":{"v":0,"d":"0.0"}},{"v":0,"d":"0.0"},{"v":0,"d":"0.0"},{"v":0,"d":"0.0"},{"v":0,"d":"0.0"},{"v":0,"d":"0.0"},{"v":0,"d":"0.0"},{"v":0,"d":"0.0"},{"v":0,"d":"0.0"},{"v":0,"d":"0.0"}]
["Tổng số giờ thông thường Tháng Tư trong ô F44 và tổng số giờ làm thêm Tháng Tư trong ô I44 đều được tính toán tự động. Hướng dẫn tiếp theo nằm trong ô A46.",{"$nulls":3},{"$f":"LEFT(Tháng_Tư[[#Headers],[Tháng Tư]],9)&\". tổng: Số giờ làm việc thông thường\"","v":"Tháng Tư. tổng: Số giờ làm việc thông thường"},{"$f":"SUM(Tháng_Tư[Tuần 1],Tháng_Tư[Tuần 2],Tháng_Tư[Tuần 3],Tháng_Tư[Tuần 4],Tháng_Tư[Tuần 5])","v":{"v":0,"d":"0.0"}},{"$f":"LEFT(Tháng_Tư[[#Headers],[Tháng Tư]],9)&\". tổng: Làm thêm\"","v":"Tháng Tư. tổng: Làm thêm"},null,{"$f":"SUM(Tháng_Tư[Làm thêm],Tháng_Tư[[Làm thêm  ]],Tháng_Tư[[Làm thêm   ]],Tháng_Tư[[Làm thêm    ]],Tháng_Tư[[Làm thêm     ]])","v":{"v":0,"d":"0.0"}}]
[]
["Nhập số giờ thông thường và làm thêm trong Tháng Năm vào bảng bắt đầu ở ô E46. Hướng dẫn tiếp theo nằm trong ô A55.",{"$nulls":3},"Tháng Năm","Tuần 1","Làm thêm","Tuần 2","Làm thêm  ","Tuần 3","Làm thêm   ","Tuần 4","Làm thêm    ","Tuần 5","Làm thêm     "]
[{"$nulls":4},"Thứ Hai"]
[{"$nulls":4},"Thứ Ba"]
[{"$nulls":4},"Thứ Tư"]
[{"$nulls":4},"Thứ Năm"]
[{"$nulls":4},"Thứ Sáu"]
[{"$nulls":4},"Thứ Bảy"]
[{"$nulls":4},"Chủ Nhật"]
[{"$nulls":4},"Tổng số giờ hàng tuần",{"$f":"SUM(F47:F53)","v":{"v":0,"d":"0.0"}},{"v":0,"d":"0.0"},{"v":0,"d":"0.0"},{"v":0,"d":"0.0"},{"v":0,"d":"0.0"},{"v":0,"d":"0.0"},{"v":0,"d":"0.0"},{"v":0,"d":"0.0"},{"v":0,"d":"0.0"},{"v":0,"d":"0.0"}]
["Tổng số giờ thông thường Tháng Năm trong ô F55 và tổng số giờ làm thêm Tháng Năm trong ô I55 đều được tính toán tự động. Hướng dẫn tiếp theo nằm trong ô A57.",{"$nulls":3},{"$f":"LEFT(Tháng_Năm[[#Headers],[Tháng Năm]],9)&\". tổng: Số giờ làm việc thông thường\"","v":"Tháng Năm. tổng: Số giờ làm việc thông thường"},{"$f":"SUM(Tháng_Năm[Tuần 1],Tháng_Năm[Tuần 2],Tháng_Năm[Tuần 3],Tháng_Năm[Tuần 4],Tháng_Năm[Tuần 5])","v":{"v":0,"d":"0.0"}},{"$f":"LEFT(Tháng_Năm[[#Headers],[Tháng Năm]],9)&\". tổng: Làm thêm\"","v":"Tháng Năm. tổng: Làm thêm"},null,{"$f":"SUM(Tháng_Năm[Làm thêm],Tháng_Năm[[Làm thêm  ]],Tháng_Năm[[Làm thêm   ]],Tháng_Năm[[Làm thêm    ]],Tháng_Năm[[Làm thêm     ]])","v":{"v":0,"d":"0.0"}}]
[]
["Nhập số giờ thông thường và làm thêm trong Tháng Sáu vào bảng bắt đầu ở ô E57. Hướng dẫn tiếp theo nằm trong ô A66.",{"$nulls":3},"Tháng Sáu","Tuần 1","Làm thêm","Tuần 2","Làm thêm  ","Tuần 3","Làm thêm   ","Tuần 4","Làm thêm    ","Tuần 5","Làm thêm     "]
[{"$nulls":4},"Thứ Hai"]
[{"$nulls":4},"Thứ Ba"]
[{"$nulls":4},"Thứ Tư"]
[{"$nulls":4},"Thứ Năm"]
[{"$nulls":4},"Thứ Sáu"]
[{"$nulls":4},"Thứ Bảy"]
[{"$nulls":4},"Chủ Nhật"]
[{"$nulls":4},"Tổng số giờ hàng tuần",{"$f":"SUM(F58:F64)","v":{"v":0,"d":"0.0"}},{"v":0,"d":"0.0"},{"v":0,"d":"0.0"},{"v":0,"d":"0.0"},{"v":0,"d":"0.0"},{"v":0,"d":"0.0"},{"v":0,"d":"0.0"},{"v":0,"d":"0.0"},{"v":0,"d":"0.0"},{"v":0,"d":"0.0"}]
["Tổng số giờ thông thường Tháng Sáu trong ô F66 và tổng số giờ làm thêm Tháng Sáu trong ô I66 đều được tính toán tự động.",{"$nulls":3},{"$f":"LEFT(Tháng_Sáu[[#Headers],[Tháng Sáu]],9)&\". tổng: Số giờ làm việc thông thường\"","v":"Tháng Sáu. tổng: Số giờ làm việc thông thường"},{"$f":"SUM(Tháng_Sáu[Tuần 1],Tháng_Sáu[Tuần 2],Tháng_Sáu[Tuần 3],Tháng_Sáu[Tuần 4],Tháng_Sáu[Tuần 5])","v":{"v":0,"d":"0.0"}},{"$f":"LEFT(Tháng_Sáu[[#Headers],[Tháng Sáu]],9)&\". tổng: Làm thêm\"","v":"Tháng Sáu. tổng: Làm thêm"},null,{"$f":"SUM(Tháng_Sáu[Làm thêm],Tháng_Sáu[[Làm thêm  ]],Tháng_Sáu[[Làm thêm   ]],Tháng_Sáu[[Làm thêm    ]],Tháng_Sáu[[Làm thêm     ]])","v":{"v":0,"d":"0.0"}}]
["Tiêu đề quý ba Tháng Bảy, Tháng Tám, Tháng Chín nằm trong ô E67. ",{"$nulls":3},"Tháng Bảy, Tháng Tám, Tháng Chín      Thẻ chấm công nhân viên: Hàng ngày, Hàng tuần, Hàng tháng, Hàng năm"]
["Nhập số giờ thông thường và làm thêm trong Tháng Bảy vào bảng bắt đầu ở ô E68. Hướng dẫn tiếp theo nằm trong ô A77.",{"$nulls":3},"Tháng Bảy","Tuần 1","Làm thêm","Tuần 2","Làm thêm ","Tuần 3","Làm thêm  ","Tuần 4","Làm thêm   ","Tuần 5","Làm thêm     "]
[{"$nulls":4},"Thứ Hai"]
[{"$nulls":4},"Thứ Ba"]
[{"$nulls":4},"Thứ Tư"]
[{"$nulls":4},"Thứ Năm"]
[{"$nulls":4},"Thứ Sáu"]
[{"$nulls":4},"Thứ Bảy"]
[{"$nulls":4},"Chủ Nhật"]
[{"$nulls":4},"Tổng số giờ hàng tuần",{"$f":"SUM(F69:F75)","v":{"v":0,"d":"0.0"}},{"v":0,"d":"0.0"},{"v":0,"d":"0.0"},{"v":0,"d":"0.0"},{"v":0,"d":"0.0"},{"v":0,"d":"0.0"},{"v":0,"d":"0.0"},{"v":0,"d":"0.0"},{"v":0,"d":"0.0"},{"v":0,"d":"0.0"}]
["Tổng số giờ thông thường Tháng Bảy trong ô F77 và tổng số giờ làm thêm Tháng Bảy trong ô I77 đều được tính toán tự động. Hướng dẫn tiếp theo nằm trong ô A79.",{"$nulls":3},{"$f":"LEFT(Tháng_Bảy[[#Headers],[Tháng Bảy]],9)&\". tổng: Số giờ làm việc thông thường\"","v":"Tháng Bảy. tổng: Số giờ làm việc thông thường"},{"$f":"SUM(Tháng_Bảy[Tuần 1],Tháng_Bảy[Tuần 2],Tháng_Bảy[Tuần 3],Tháng_Bảy[Tuần 4],Tháng_Bảy[Tuần 5])","v":{"v":0,"d":"0.0"}},{"$f":"LEFT(Tháng_Bảy[[#Headers],[Tháng Bảy]],9)&\". tổng: Làm thêm\"","v":"Tháng Bảy. tổng: Làm thêm"},null,{"$f":"SUM(Tháng_Bảy[Làm thêm],Tháng_Bảy[[Làm thêm ]],Tháng_Bảy[[Làm thêm  ]],Tháng_Bảy[[Làm thêm   ]],Tháng_Bảy[[Làm thêm     ]])","v":{"v":0,"d":"0.0"}}]
[]
["Nhập số giờ thông thường và làm thêm trong Tháng Tám vào bảng bắt đầu ở ô E79. Hướng dẫn tiếp theo nằm trong ô A88.",{"$nulls":3},"Tháng Tám","Tuần 1","Làm thêm","Tuần 2","Làm thêm ","Tuần 3","Làm thêm   ","Tuần 4","Làm thêm  ","Tuần 5","Làm thêm    "]
[{"$nulls":4},"Thứ Hai"]
[{"$nulls":4},"Thứ Ba"]
[{"$nulls":4},"Thứ Tư"]
[{"$nulls":4},"Thứ Năm"]
[{"$nulls":4},"Thứ Sáu"]
[{"$nulls":4},"Thứ Bảy"]
[{"$nulls":4},"Chủ Nhật"]
[{"$nulls":4},"Tổng số giờ hàng tuần",{"$f":"SUBTOTAL(109,Tháng_Tám[Tuần 1])","v":{"v":0,"d":"0.0"}},{"$f":"SUBTOTAL(109,Tháng_Tám[Làm thêm])","v":{"v":0,"d":"0.0"}},{"$f":"SUBTOTAL(109,Tháng_Tám[Tuần 2])","v":{"v":0,"d":"0.0"}},{"$f":"SUBTOTAL(109,Tháng_Tám[[Làm thêm ]])","v":{"v":0,"d":"0.0"}},{"$f":"SUBTOTAL(109,Tháng_Tám[Tuần 3])","v":{"v":0,"d":"0.0"}},{"$f":"SUBTOTAL(109,Tháng_Tám[[Làm thêm   ]])","v":{"v":0,"d":"0.0"}},{"$f":"SUBTOTAL(109,Tháng_Tám[Tuần 4])","v":{"v":0,"d":"0.0"}},{"$f":"SUBTOTAL(109,Tháng_Tám[[Làm thêm  ]])","v":{"v":0,"d":"0.0"}},{"$f":"SUBTOTAL(109,Tháng_Tám[Tuần 5])","v":{"v":0,"d":"0.0"}},{"$f":"SUBTOTAL(109,Tháng_Tám[[Làm thêm    ]])","v":{"v":0,"d":"0.0"}}]
["Tổng số giờ thông thường Tháng Tám trong ô F88 và tổng số giờ làm thêm Tháng Tám trong ô I88 đều được tính toán tự động. Hướng dẫn tiếp theo nằm trong ô A90.",{"$nulls":3},{"$f":"LEFT(Tháng_Tám[[#Headers],[Tháng Tám]],9)&\". tổng: Số giờ làm việc thông thường\"","v":"Tháng Tám. tổng: Số giờ làm việc thông thường"},{"$f":"SUM(Tháng_Tám[Tuần 1],Tháng_Tám[Tuần 2],Tháng_Tám[Tuần 3],Tháng_Tám[Tuần 4],Tháng_Tám[Tuần 5])","v":{"v":0,"d":"0.0"}},{"$f":"LEFT(Tháng_Tám[[#Headers],[Tháng Tám]],9)&\". tổng: Làm thêm\"","v":"Tháng Tám. tổng: Làm thêm"},null,{"$f":"SUM(Tháng_Tám[Làm thêm],Tháng_Tám[[Làm thêm ]],Tháng_Tám[[Làm thêm   ]],Tháng_Tám[[Làm thêm  ]],Tháng_Tám[[Làm thêm    ]])","v":{"v":0,"d":"0.0"}}]
[]
["Nhập số giờ thông thường và làm thêm trong Tháng Chín vào bảng bắt đầu ở ô E90. Hướng dẫn tiếp theo nằm trong ô A99.",{"$nulls":3},"Tháng Chín","Tuần 1","Làm thêm","Tuần 2","Làm thêm ","Tuần 3","Làm thêm  ","Tuần 4","Làm thêm   ","Tuần 5","Làm thêm    "]
[{"$nulls":4},"Thứ Hai"]
[{"$nulls":4},"Thứ Ba"]
[{"$nulls":4},"Thứ Tư"]
[{"$nulls":4},"Thứ Năm"]
[{"$nulls":4},"Thứ Sáu"]
[{"$nulls":4},"Thứ Bảy"]
[{"$nulls":4},"Chủ Nhật"]
[{"$nulls":4},"Tổng số giờ hàng tuần",{"$f":"SUBTOTAL(109,Tháng_Chín[Tuần 1])","v":{"v":0,"d":"0.0"}},{"$f":"SUBTOTAL(109,Tháng_Chín[Làm thêm])","v":{"v":0,"d":"0.0"}},{"$f":"SUBTOTAL(109,Tháng_Chín[Tuần 2])","v":{"v":0,"d":"0.0"}},{"$f":"SUBTOTAL(109,Tháng_Chín[[Làm thêm ]])","v":{"v":0,"d":"0.0"}},{"$f":"SUBTOTAL(109,Tháng_Chín[Tuần 3])","v":{"v":0,"d":"0.0"}},{"$f":"SUBTOTAL(109,Tháng_Chín[[Làm thêm  ]])","v":{"v":0,"d":"0.0"}},{"$f":"SUBTOTAL(109,Tháng_Chín[Tuần 4])","v":{"v":0,"d":"0.0"}},{"$f":"SUBTOTAL(109,Tháng_Chín[[Làm thêm   ]])","v":{"v":0,"d":"0.0"}},{"$f":"SUBTOTAL(109,Tháng_Chín[Tuần 5])","v":{"v":0,"d":"0.0"}},{"$f":"SUBTOTAL(109,Tháng_Chín[[Làm thêm    ]])","v":{"v":0,"d":"0.0"}}]
["Tổng số giờ thông thường Tháng Chín trong ô F99 và tổng số giờ làm thêm Tháng Chín trong ô I99 đều được tính toán tự động.",{"$nulls":3},{"$f":"LEFT(Tháng_Chín[[#Headers],[Tháng Chín]],9)&\". tổng: Số giờ làm việc thông thường\"","v":"Tháng Chí. tổng: Số giờ làm việc thông thường"},{"$f":"SUM(Tháng_Chín[Tuần 1],Tháng_Chín[Tuần 2],Tháng_Chín[Tuần 3],Tháng_Chín[Tuần 4],Tháng_Chín[Tuần 5])","v":{"v":0,"d":"0.0"}},{"$f":"LEFT(Tháng_Chín[[#Headers],[Tháng Chín]],9)&\". tổng: Làm thêm\"","v":"Tháng Chí. tổng: Làm thêm"},null,{"$f":"SUM(Tháng_Chín[Làm thêm],Tháng_Chín[[Làm thêm ]],Tháng_Chín[[Làm thêm  ]],Tháng_Chín[[Làm thêm   ]],Tháng_Chín[[Làm thêm    ]])","v":{"v":0,"d":"0.0"}}]
["Tiêu đề quý bốn Tháng Mười, Tháng Mười Một, Tháng Mười Hai nằm trong ô E100. ",{"$nulls":3},"Tháng Mười, Tháng Mười Một, Tháng Mười Hai      Thẻ chấm công nhân viên: Hàng ngày, Hàng tuần, Hàng tháng, Hàng năm"]
["Nhập số giờ thông thường và làm thêm trong Tháng Mười vào bảng bắt đầu ở ô E101. Hướng dẫn tiếp theo nằm trong ô A110.",{"$nulls":3},"Tháng Mười","Tuần 1","Làm thêm","Tuần 2","Làm thêm ","Tuần 3","Làm thêm  ","Tuần 4","Làm thêm   ","Tuần 5","Làm thêm    "]
[{"$nulls":4},"Thứ Hai"]
[{"$nulls":4},"Thứ Ba"]
[{"$nulls":4},"Thứ Tư"]
[{"$nulls":4},"Thứ Năm"]
[{"$nulls":4},"Thứ Sáu"]
[{"$nulls":4},"Thứ Bảy"]
[{"$nulls":4},"Chủ Nhật"]
[{"$nulls":4},"Tổng số giờ hàng tuần",{"$f":"SUBTOTAL(109,Tháng_Mười[Tuần 1])","v":{"v":0,"d":"0.0"}},{"$f":"SUBTOTAL(109,Tháng_Mười[Làm thêm])","v":{"v":0,"d":"0.0"}},{"$f":"SUBTOTAL(109,Tháng_Mười[Tuần 2])","v":{"v":0,"d":"0.0"}},{"$f":"SUBTOTAL(109,Tháng_Mười[[Làm thêm ]])","v":{"v":0,"d":"0.0"}},{"$f":"SUBTOTAL(109,Tháng_Mười[Tuần 3])","v":{"v":0,"d":"0.0"}},{"$f":"SUBTOTAL(109,Tháng_Mười[[Làm thêm  ]])","v":{"v":0,"d":"0.0"}},{"$f":"SUBTOTAL(109,Tháng_Mười[Tuần 4])","v":{"v":0,"d":"0.0"}},{"$f":"SUBTOTAL(109,Tháng_Mười[[Làm thêm   ]])","v":{"v":0,"d":"0.0"}},{"$f":"SUBTOTAL(109,Tháng_Mười[Tuần 5])","v":{"v":0,"d":"0.0"}},{"$f":"SUBTOTAL(109,Tháng_Mười[[Làm thêm    ]])","v":{"v":0,"d":"0.0"}}]
["Tổng số giờ thông thường Tháng Mười trong ô F110 và tổng số giờ làm thêm Tháng Mười trong ô I110 đều được tính toán tự động. Hướng dẫn tiếp theo nằm trong ô A112.",{"$nulls":3},{"$f":"LEFT(Tháng_Mười[[#Headers],[Tháng Mười]],9)&\". tổng: Số giờ làm việc thông thường\"","v":"Tháng Mườ. tổng: Số giờ làm việc thông thường"},{"$f":"SUM(Tháng_Mười[Tuần 1],Tháng_Mười[Tuần 2],Tháng_Mười[Tuần 3],Tháng_Mười[Tuần 4],Tháng_Mười[Tuần 5])","v":{"v":0,"d":"0.0"}},{"$f":"LEFT(Tháng_Mười[[#Headers],[Tháng Mười]],9)&\". tổng: Làm thêm\"","v":"Tháng Mườ. tổng: Làm thêm"},null,{"$f":"SUM(Tháng_Mười[Làm thêm],Tháng_Mười[[Làm thêm ]],Tháng_Mười[[Làm thêm  ]],Tháng_Mười[[Làm thêm   ]],Tháng_Mười[[Làm thêm    ]])","v":{"v":0,"d":"0.0"}}]
[]
["Nhập số giờ thông thường và làm thêm trong Tháng Mười Một vào bảng bắt đầu ở ô E112. Hướng dẫn tiếp theo nằm trong ô A121.",{"$nulls":3},"Tháng Mười Một","Tuần 1","Làm thêm","Tuần 2","Làm thêm ","Tuần 3","Làm thêm  ","Tuần 4","Làm thêm    ","Tuần 5","Làm thêm     "]
[{"$nulls":4},"Thứ Hai"]
[{"$nulls":4},"Thứ Ba"]
[{"$nulls":4},"Thứ Tư"]
[{"$nulls":4},"Thứ Năm"]
[{"$nulls":4},"Thứ Sáu"]
[{"$nulls":4},"Thứ Bảy"]
[{"$nulls":4},"Chủ Nhật"]
[{"$nulls":4},"Tổng số giờ hàng tuần",{"$f":"SUBTOTAL(109,Tháng_Mười_Một[Tuần 1])","v":{"v":0,"d":"0.0"}},{"$f":"SUBTOTAL(109,Tháng_Mười_Một[Làm thêm])","v":{"v":0,"d":"0.0"}},{"$f":"SUBTOTAL(109,Tháng_Mười_Một[Tuần 2])","v":{"v":0,"d":"0.0"}},{"$f":"SUBTOTAL(109,Tháng_Mười_Một[[Làm thêm ]])","v":{"v":0,"d":"0.0"}},{"$f":"SUBTOTAL(109,Tháng_Mười_Một[Tuần 3])","v":{"v":0,"d":"0.0"}},{"$f":"SUBTOTAL(109,Tháng_Mười_Một[[Làm thêm  ]])","v":{"v":0,"d":"0.0"}},{"$f":"SUBTOTAL(109,Tháng_Mười_Một[Tuần 4])","v":{"v":0,"d":"0.0"}},{"$f":"SUBTOTAL(109,Tháng_Mười_Một[[Làm thêm    ]])","v":{"v":0,"d":"0.0"}},{"$f":"SUBTOTAL(109,Tháng_Mười_Một[Tuần 5])","v":{"v":0,"d":"0.0"}},{"$f":"SUBTOTAL(109,Tháng_Mười_Một[[Làm thêm     ]])","v":{"v":0,"d":"0.0"}}]
["Tổng số giờ thông thường của Tháng Mười Một trong ô F121 và tổng số giờ làm thêm Tháng Mười Một trong ô I121 đều được tính toán tự động. Hướng dẫn tiếp theo nằm trong ô A123.",{"$nulls":3},{"$f":"LEFT(Tháng_Mười_Một[[#Headers],[Tháng Mười Một]],9)&\". tổng: Số giờ làm việc thông thường\"","v":"Tháng Mườ. tổng: Số giờ làm việc thông thường"},{"$f":"SUM(Tháng_Mười_Một[Tuần 1],Tháng_Mười_Một[Tuần 2],Tháng_Mười_Một[Tuần 3],Tháng_Mười_Một[Tuần 4],Tháng_Mười_Một[Tuần 5])","v":{"v":0,"d":"0.0"}},{"$f":"LEFT(Tháng_Mười_Một[[#Headers],[Tháng Mười Một]],9)&\". tổng: Làm thêm\"","v":"Tháng Mườ. tổng: Làm thêm"},null,{"$f":"SUM(Tháng_Mười_Một[Làm thêm],Tháng_Mười_Một[[Làm thêm ]],Tháng_Mười_Một[[Làm thêm  ]],Tháng_Mười_Một[[Làm thêm    ]],Tháng_Mười_Một[[Làm thêm     ]])","v":{"v":0,"d":"0.0"}}]
[]
["Nhập số giờ thông thường và làm thêm trong Tháng Mười Hai vào bảng bắt đầu ở ô E123. Hướng dẫn tiếp theo nằm trong ô A132.",{"$nulls":3},"Tháng Mười Hai","Tuần 1","Làm thêm","Tuần 2","Làm thêm ","Tuần 3","Làm thêm  ","Tuần 4","Làm thêm   ","Tuần 5","Làm thêm    "]
[{"$nulls":4},"Thứ Hai"]
[{"$nulls":4},"Thứ Ba"]
[{"$nulls":4},"Thứ Tư"]
[{"$nulls":4},"Thứ Năm"]
[{"$nulls":4},"Thứ Sáu"]
[{"$nulls":4},"Thứ Bảy"]
[{"$nulls":4},"Chủ Nhật"]
[{"$nulls":4},"Tổng số giờ hàng tuần",{"$f":"SUBTOTAL(109,Tháng_Mười_Hai[Tuần 1])","v":{"v":0,"d":"0.0"}},{"$f":"SUBTOTAL(109,Tháng_Mười_Hai[Làm thêm])","v":{"v":0,"d":"0.0"}},{"$f":"SUBTOTAL(109,Tháng_Mười_Hai[Tuần 2])","v":{"v":0,"d":"0.0"}},{"$f":"SUBTOTAL(109,Tháng_Mười_Hai[[Làm thêm ]])","v":{"v":0,"d":"0.0"}},{"$f":"SUBTOTAL(109,Tháng_Mười_Hai[Tuần 3])","v":{"v":0,"d":"0.0"}},{"$f":"SUBTOTAL(109,Tháng_Mười_Hai[[Làm thêm  ]])","v":{"v":0,"d":"0.0"}},{"$f":"SUBTOTAL(109,Tháng_Mười_Hai[Tuần 4])","v":{"v":0,"d":"0.0"}},{"$f":"SUBTOTAL(109,Tháng_Mười_Hai[[Làm thêm   ]])","v":{"v":0,"d":"0.0"}},{"$f":"SUBTOTAL(109,Tháng_Mười_Hai[Tuần 5])","v":{"v":0,"d":"0.0"}},{"$f":"SUBTOTAL(109,Tháng_Mười_Hai[[Làm thêm    ]])","v":{"v":0,"d":"0.0"}}]
["Tổng số giờ thông thường của Tháng Mười Hai trong ô F132 và tổng số giờ làm thêm Tháng Mười Hai trong ô I132 đều được tính toán tự động.",{"$nulls":3},{"$f":"LEFT(Tháng_Mười_Hai[[#Headers],[Tháng Mười Hai]],9)&\". tổng: Số giờ làm việc thông thường\"","v":"Tháng Mườ. tổng: Số giờ làm việc thông thường"},{"$f":"SUM(Tháng_Mười_Hai[Tuần 1],Tháng_Mười_Hai[Tuần 2],Tháng_Mười_Hai[Tuần 3],Tháng_Mười_Hai[Tuần 4],Tháng_Mười_Hai[Tuần 5])","v":{"v":0,"d":"0.0"}},{"$f":"LEFT(Tháng_Mười_Hai[[#Headers],[Tháng Mười Hai]],9)&\". tổng: Làm thêm\"","v":"Tháng Mườ. tổng: Làm thêm"},null,{"$f":"SUM(G124:G130,I124:I130,K124:K130,M124:M130,O124:O130)","v":{"v":0,"d":"0.0"}}]